[Event "Titled Tuesday Blitz May 9 Early 2023"]
[White "I_KID_you_not"]
[Black "Lehtosaari, Mauri"]
[BlackFideId "501999"]
[WhiteElo "2287"]
[BlackElo "2520"]
[Result "1/2-1/2"]
[Round "05"]
[TimeControl "180+2"]
[Date "2023.05.09"]
[WhiteClock "0:00:09"]
[BlackClock "0:00:16"]

1. e4 {[%clk 0:01:55]}  c5 {[%clk 0:02:58]} 2. Nc3 {[%clk 0:01:55]}  e6 {[%clk 0:02:52]} 3. Nge2 {[%clk 0:01:54]}  Nc6 {[%clk 0:02:47]} 4. g3 {[%clk 0:01:55]}  Nf6 {[%clk 0:02:47]} 5. Bg2 {[%clk 0:01:55]}  Be7 {[%clk 0:02:45]} 6. O-O {[%clk 0:01:54]}  O-O {[%clk 0:02:45]} 7. h3 {[%clk 0:01:54]}  d5 {[%clk 0:02:45]} 8. exd5 {[%clk 0:01:55]}  exd5 {[%clk 0:02:45]} 9. d4 {[%clk 0:01:56]}  Bf5 {[%clk 0:02:43]} 10. Be3 {[%clk 0:01:54]}  c4 {[%clk 0:02:40]} 11. g4 {[%clk 0:01:54]}  Bg6 {[%clk 0:02:40]} 12. f4 {[%clk 0:01:52]}  Be4 {[%clk 0:02:36]} 13. Nxe4 {[%clk 0:01:51]}  Nxe4 {[%clk 0:02:36]} 14. Bxe4 {[%clk 0:01:47]}  dxe4 {[%clk 0:02:37]} 15. Ng3 {[%clk 0:01:47]}  Qd5 {[%clk 0:02:30]} 16. c3 {[%clk 0:01:46]}  Bh4 {[%clk 0:02:30]} 17. Nf5 {[%clk 0:01:46]}  Bf6 {[%clk 0:02:29]} 18. Qc2 {[%clk 0:01:44]}  g6 {[%clk 0:02:27]} 19. Ng3 {[%clk 0:01:36]}  Rae8 {[%clk 0:02:24]} 20. g5 {[%clk 0:01:36]}  Bg7 {[%clk 0:02:21]} 21. Rae1 {[%clk 0:01:36]}  f5 {[%clk 0:02:21]} 22. gxf6 {[%clk 0:01:32]}  Bxf6 {[%clk 0:02:18]} 23. Bf2 {[%clk 0:01:22]}  Bh4 {[%clk 0:01:58]} 24. Nxe4 {[%clk 0:01:17]}  Bxf2+ {[%clk 0:01:57]} 25. Rxf2 {[%clk 0:01:14]}  Qf5 {[%clk 0:01:53]} 26. Kg2 {[%clk 0:01:05]}  Re6 {[%clk 0:01:48]} 27. Ree2 {[%clk 0:00:45]}  Rfe8 {[%clk 0:01:37]} 28. Ng3 {[%clk 0:00:39]}  Qd5+ {[%clk 0:01:36]} 29. Kh2 {[%clk 0:00:38]}  Re3 {[%clk 0:01:28]} 30. f5 {[%clk 0:00:32]}  Qd6 {[%clk 0:01:21]} 31. Rxe3 {[%clk 0:00:30]}  Rxe3 {[%clk 0:01:20]} 32. Rg2 {[%clk 0:00:31]}  Ne7 {[%clk 0:01:17]} 33. fxg6 {[%clk 0:00:30]}  Nxg6 {[%clk 0:01:16]} 34. Qf5 {[%clk 0:00:28]}  a6 {[%clk 0:00:53]} 35. h4 {[%clk 0:00:26]}  Qf4 {[%clk 0:00:39]} 36. Qxf4 {[%clk 0:00:20]}  Nxf4 {[%clk 0:00:40]} 37. Rf2 {[%clk 0:00:17]}  Nd3 {[%clk 0:00:37]} 38. Rd2 {[%clk 0:00:17]}  Re1 {[%clk 0:00:28]} 39. b3 {[%clk 0:00:15]}  b5 {[%clk 0:00:29]} 40. bxc4 {[%clk 0:00:14]}  bxc4 {[%clk 0:00:30]} 41. Nf5 {[%clk 0:00:15]}  Rc1 {[%clk 0:00:27]} 42. d5 {[%clk 0:00:10]}  Kf7 {[%clk 0:00:24]} 43. d6 {[%clk 0:00:10]}  Ne5 {[%clk 0:00:18]} 44. d7 {[%clk 0:00:05]}  Nxd7 {[%clk 0:00:18]} 45. Rxd7+ {[%clk 0:00:05]}  Ke6 {[%clk 0:00:19]} 46. Rxh7 {[%clk 0:00:05]}  Kxf5 {[%clk 0:00:19]} 47. Ra7 {[%clk 0:00:06]}  Rxc3 {[%clk 0:00:19]} 48. Rxa6 {[%clk 0:00:06]}  Rc1 {[%clk 0:00:18]} 49. Kg3 {[%clk 0:00:06]}  c3 {[%clk 0:00:19]} 50. Kg2 {[%clk 0:00:06]}  Ke4 {[%clk 0:00:16]} 51. Re6+ {[%clk 0:00:06]}  Kd3 {[%clk 0:00:17]} 52. h5 {[%clk 0:00:06]}  Ra1 {[%clk 0:00:14]} 53. Kg3 {[%clk 0:00:06]}  Rxa2 {[%clk 0:00:13]} 54. Rc6 {[%clk 0:00:06]}  Ra8 {[%clk 0:00:13]} 55. Kg4 {[%clk 0:00:06]}  Ra4+ {[%clk 0:00:14]} 56. Kg5 {[%clk 0:00:06]}  c2 {[%clk 0:00:14]} 57. Rxc2 {[%clk 0:00:05]}  Kxc2 {[%clk 0:00:15]} 58. h6 {[%clk 0:00:06]}  Ra5+ {[%clk 0:00:14]} 59. Kg6 {[%clk 0:00:06]}  Ra6+ {[%clk 0:00:14]} 60. Kg7 {[%clk 0:00:07]}  Ra7+ {[%clk 0:00:15]} 61. Kg8 {[%clk 0:00:07]}  Ra8+ {[%clk 0:00:15]} 62. Kg7 {[%clk 0:00:07]}  Kd3 {[%clk 0:00:16]} 63. h7 {[%clk 0:00:08]}  Ke4 {[%clk 0:00:16]} 64. h8=Q {[%clk 0:00:08]}  Rxh8 {[%clk 0:00:16]} 65. Kxh8 {[%clk 0:00:09]} 1/2-1/2


[Site "https://www.chess.com"]

[Event "Titled Tuesday Blitz May 9 Early 2023"]
[White "Rodchenkov, Sergey D."]
[Black "babbilator"]
[WhiteFideId "4168712"]
[WhiteElo "2277"]
[BlackElo "2280"]
[Result "1-0"]
[Round "05"]
[TimeControl "180+2"]
[Date "2023.05.09"]
[WhiteClock "0:00:10"]
[BlackClock "0:00:00"]

1. e4 {[%clk 0:03:00]}  c5 {[%clk 0:02:55]} 2. Nf3 {[%clk 0:03:01]}  e6 {[%clk 0:02:54]} 3. d4 {[%clk 0:03:01]}  cxd4 {[%clk 0:02:53]} 4. Nxd4 {[%clk 0:03:02]}  Nc6 {[%clk 0:02:52]} 5. Nc3 {[%clk 0:03:02]}  Qc7 {[%clk 0:02:51]} 6. Be3 {[%clk 0:03:00]}  a6 {[%clk 0:02:47]} 7. a3 {[%clk 0:03:00]}  Nf6 {[%clk 0:02:42]} 8. f4 {[%clk 0:02:52]}  d6 {[%clk 0:02:36]} 9. g4 {[%clk 0:02:22]}  Nxd4 {[%clk 0:02:18]} 10. Bxd4 {[%clk 0:02:09]}  e5 {[%clk 0:02:14]} 11. Be3 {[%clk 0:02:09]}  exf4 {[%clk 0:02:03]} 12. g5 {[%clk 0:01:47]}  fxe3 {[%clk 0:02:00]} 13. gxf6 {[%clk 0:01:47]}  Qb6 {[%clk 0:01:52]} 14. Nd5 {[%clk 0:01:17]}  Qxb2 {[%clk 0:01:51]} 15. Rb1 {[%clk 0:00:54]}  Qxa3 {[%clk 0:01:44]} 16. Rg1 {[%clk 0:00:46]}  Qa5+ {[%clk 0:01:33]} 17. c3 {[%clk 0:00:46]}  g6 {[%clk 0:01:18]} 18. Ra1 {[%clk 0:00:43]}  Qc5 {[%clk 0:01:13]} 19. Rg5 {[%clk 0:00:20]}  Bh6 {[%clk 0:01:01]} 20. Rg3 {[%clk 0:00:13]}  Be6 {[%clk 0:00:49]} 21. Bb5+ {[%clk 0:00:08]}  Kd8 {[%clk 0:00:22]} 22. Be2 {[%clk 0:00:08]}  Bxd5 {[%clk 0:00:20]} 23. exd5 {[%clk 0:00:09]}  Qxc3+ {[%clk 0:00:12]} 24. Kf1 {[%clk 0:00:09]}  Rc8 {[%clk 0:00:12]} 25. Rb1 {[%clk 0:00:09]}  b5 {[%clk 0:00:11]} 26. Kg2 {[%clk 0:00:09]}  Bf4 {[%clk 0:00:04]} 27. Rf3 {[%clk 0:00:08]}  Qe5 {[%clk 0:00:04]} 28. Qf1 {[%clk 0:00:09]}  Qg5+ {[%clk 0:00:04]} 29. Kh1 {[%clk 0:00:09]}  Be5 {[%clk 0:00:00]} 30. Rd1 {[%clk 0:00:10]} 1-0


[Site "https://www.chess.com"]

[Event "Titled Tuesday Blitz May 9 Early 2023"]
[White "Shvedova, Alexandra"]
[Black "Antonio, Jorge Carlos"]
[WhiteFideId "54154782"]
[BlackFideId "113190"]
[WhiteElo "1973"]
[BlackElo "2247"]
[Result "1/2-1/2"]
[Round "05"]
[TimeControl "180+2"]
[Date "2023.05.09"]
[WhiteClock "0:00:10"]
[BlackClock "0:00:02"]

1. Nf3 {[%clk 0:03:00]}  d5 {[%clk 0:02:59]} 2. g3 {[%clk 0:02:59]}  c6 {[%clk 0:02:54]} 3. Bg2 {[%clk 0:02:59]}  Nf6 {[%clk 0:02:54]} 4. c4 {[%clk 0:02:56]}  e6 {[%clk 0:02:53]} 5. d4 {[%clk 0:02:51]}  Be7 {[%clk 0:02:50]} 6. O-O {[%clk 0:02:50]}  O-O {[%clk 0:02:41]} 7. Nc3 {[%clk 0:02:51]}  b6 {[%clk 0:02:30]} 8. b3 {[%clk 0:02:51]}  Nbd7 {[%clk 0:02:25]} 9. Bb2 {[%clk 0:02:50]}  Bb7 {[%clk 0:02:21]} 10. Qc2 {[%clk 0:02:49]}  Rc8 {[%clk 0:02:19]} 11. Rfd1 {[%clk 0:02:48]}  c5 {[%clk 0:02:15]} 12. cxd5 {[%clk 0:02:36]}  cxd4 {[%clk 0:02:12]} 13. Nxd4 {[%clk 0:02:23]}  Nxd5 {[%clk 0:02:11]} 14. Qd2 {[%clk 0:02:13]}  Nxc3 {[%clk 0:02:08]} 15. Bxc3 {[%clk 0:02:13]}  Bxg2 {[%clk 0:02:05]} 16. Kxg2 {[%clk 0:02:14]}  Nf6 {[%clk 0:02:00]} 17. Bb2 {[%clk 0:02:07]}  Qd5+ {[%clk 0:01:54]} 18. Kg1 {[%clk 0:02:05]}  Rfd8 {[%clk 0:01:48]} 19. Qe3 {[%clk 0:01:45]}  Bc5 {[%clk 0:01:44]} 20. Qf3 {[%clk 0:01:11]}  Qxf3 {[%clk 0:01:43]} 21. Nxf3 {[%clk 0:01:12]}  Ne4 {[%clk 0:01:36]} 22. e3 {[%clk 0:01:10]}  f6 {[%clk 0:01:33]} 23. Nd4 {[%clk 0:01:09]}  Bxd4 {[%clk 0:01:30]} 24. Bxd4 {[%clk 0:01:05]}  Rc2 {[%clk 0:01:26]} 25. f3 {[%clk 0:00:58]}  Ng5 {[%clk 0:01:17]} 26. Rac1 {[%clk 0:00:34]}  Nxf3+ {[%clk 0:01:12]} 27. Kf1 {[%clk 0:00:34]}  Rdc8 {[%clk 0:00:58]} 28. Rxc2 {[%clk 0:00:31]}  Rxc2 {[%clk 0:00:57]} 29. h4 {[%clk 0:00:30]}  e5 {[%clk 0:00:52]} 30. Ba1 {[%clk 0:00:28]}  Kf7 {[%clk 0:00:41]} 31. a4 {[%clk 0:00:22]}  Ke6 {[%clk 0:00:37]} 32. b4 {[%clk 0:00:22]}  Nh2+ {[%clk 0:00:30]} 33. Ke1 {[%clk 0:00:22]}  Ng4 {[%clk 0:00:30]} 34. e4 {[%clk 0:00:19]}  Rc4 {[%clk 0:00:13]} 35. Ke2 {[%clk 0:00:19]}  Rxe4+ {[%clk 0:00:13]} 36. Kf3 {[%clk 0:00:19]}  f5 {[%clk 0:00:11]} 37. Rc1 {[%clk 0:00:18]}  Rxb4 {[%clk 0:00:10]} 38. Bc3 {[%clk 0:00:16]}  Rxa4 {[%clk 0:00:10]} 39. Ke2 {[%clk 0:00:15]}  Kd5 {[%clk 0:00:10]} 40. Bd2 {[%clk 0:00:15]}  Ke4 {[%clk 0:00:10]} 41. Rc7 {[%clk 0:00:14]}  g6 {[%clk 0:00:08]} 42. Rxh7 {[%clk 0:00:14]}  f4 {[%clk 0:00:08]} 43. gxf4 {[%clk 0:00:13]}  exf4 {[%clk 0:00:09]} 44. Re7+ {[%clk 0:00:14]}  Kf5 {[%clk 0:00:09]} 45. Rf7+ {[%clk 0:00:14]}  Nf6 {[%clk 0:00:08]} 46. Kf3 {[%clk 0:00:11]}  Ra3+ {[%clk 0:00:07]} 47. Ke2 {[%clk 0:00:12]}  Ke6 {[%clk 0:00:05]} 48. Rg7 {[%clk 0:00:09]}  Kf5 {[%clk 0:00:04]} 49. Rf7 {[%clk 0:00:09]}  Ke6 {[%clk 0:00:04]} 50. Rg7 {[%clk 0:00:10]}  Kf5 {[%clk 0:00:02]} 51. Rf7 {[%clk 0:00:10]} 1/2-1/2


[Site "https://www.chess.com"]

[Event "Titled Tuesday Blitz May 9 Early 2023"]
[White "Chernomordik, Pavel"]
[Black "Kuchava, Ana"]
[WhiteFideId "2804530"]
[BlackFideId "13605348"]
[WhiteElo "2193"]
[BlackElo "2001"]
[Result "1-0"]
[Round "05"]
[TimeControl "180+2"]
[Date "2023.05.09"]
[WhiteClock "0:00:56"]
[BlackClock "0:00:03"]

1. e4 {[%clk 0:02:49]}  c5 {[%clk 0:02:59]} 2. Nc3 {[%clk 0:02:49]}  Nc6 {[%clk 0:02:56]} 3. Bb5 {[%clk 0:02:48]}  Nd4 {[%clk 0:02:54]} 4. Bc4 {[%clk 0:02:47]}  e6 {[%clk 0:02:50]} 5. Nge2 {[%clk 0:02:47]}  a6 {[%clk 0:02:43]} 6. Nxd4 {[%clk 0:02:46]}  cxd4 {[%clk 0:02:44]} 7. Ne2 {[%clk 0:02:46]}  b5 {[%clk 0:02:32]} 8. Bb3 {[%clk 0:02:45]}  Qb6 {[%clk 0:02:32]} 9. d3 {[%clk 0:02:45]}  Bb7 {[%clk 0:02:30]} 10. O-O {[%clk 0:02:44]}  Nf6 {[%clk 0:02:29]} 11. f4 {[%clk 0:02:37]}  Be7 {[%clk 0:02:28]} 12. Ng3 {[%clk 0:02:36]}  O-O {[%clk 0:02:20]} 13. a4 {[%clk 0:02:32]}  d6 {[%clk 0:01:43]} 14. Nh5 {[%clk 0:02:21]}  Nxh5 {[%clk 0:01:34]} 15. Qxh5 {[%clk 0:02:20]}  Qc5 {[%clk 0:01:32]} 16. f5 {[%clk 0:02:11]}  g6 {[%clk 0:00:58]} 17. Qg4 {[%clk 0:02:00]}  exf5 {[%clk 0:00:22]} 18. exf5 {[%clk 0:01:53]}  Bd5 {[%clk 0:00:13]} 19. f6 {[%clk 0:01:52]}  Bd8 {[%clk 0:00:11]} 20. Qh4 {[%clk 0:01:22]}  Bxb3 {[%clk 0:00:10]} 21. cxb3 {[%clk 0:01:13]}  Qe5 {[%clk 0:00:09]} 22. Bh6 {[%clk 0:01:06]}  Re8 {[%clk 0:00:08]} 23. Rae1 {[%clk 0:01:05]}  Bxf6 {[%clk 0:00:03]} 24. Qxf6 {[%clk 0:00:59]}  Qxe1 {[%clk 0:00:03]} 25. Qg7# {[%clk 0:00:56]} 1-0


[Site "https://www.chess.com"]

[Event "Titled Tuesday Blitz May 9 Early 2023"]
[White "Samaganova, Aleksandra"]
[Black "Baches Garcia, Guillermo"]
[WhiteFideId "13800221"]
[BlackFideId "2209764"]
[WhiteElo "1858"]
[BlackElo "2511"]
[Result "1-0"]
[Round "05"]
[TimeControl "180+2"]
[Date "2023.05.09"]
[WhiteClock "0:00:03"]
[BlackClock "0:00:00"]

1. c4 {[%clk 0:03:00]}  Nf6 {[%clk 0:02:57]} 2. Nc3 {[%clk 0:03:01]}  e6 {[%clk 0:02:57]} 3. e4 {[%clk 0:03:00]}  d5 {[%clk 0:02:55]} 4. e5 {[%clk 0:02:57]}  Nfd7 {[%clk 0:02:47]} 5. Nf3 {[%clk 0:02:54]}  d4 {[%clk 0:02:28]} 6. Nxd4 {[%clk 0:02:54]}  Nxe5 {[%clk 0:02:27]} 7. Nf3 {[%clk 0:02:54]}  Nxf3+ {[%clk 0:02:17]} 8. Qxf3 {[%clk 0:02:52]}  Nc6 {[%clk 0:02:16]} 9. d3 {[%clk 0:02:41]}  Bc5 {[%clk 0:02:07]} 10. Be3 {[%clk 0:02:16]}  Nd4 {[%clk 0:01:46]} 11. Qd1 {[%clk 0:02:10]}  e5 {[%clk 0:01:39]} 12. a3 {[%clk 0:01:43]}  a5 {[%clk 0:01:31]} 13. Be2 {[%clk 0:01:36]}  O-O {[%clk 0:01:25]} 14. O-O {[%clk 0:01:33]}  Bf5 {[%clk 0:01:19]} 15. Ne4 {[%clk 0:01:14]}  Ba7 {[%clk 0:01:09]} 16. Ng3 {[%clk 0:01:01]}  Nxe2+ {[%clk 0:01:03]} 17. Nxe2 {[%clk 0:00:49]}  Bxd3 {[%clk 0:00:57]} 18. Bxa7 {[%clk 0:00:45]}  Rxa7 {[%clk 0:00:56]} 19. Rc1 {[%clk 0:00:43]}  Ra6 {[%clk 0:00:50]} 20. Re1 {[%clk 0:00:39]}  Rg6 {[%clk 0:00:46]} 21. Ng3 {[%clk 0:00:37]}  Qd4 {[%clk 0:00:29]} 22. Rc3 {[%clk 0:00:19]}  Rd8 {[%clk 0:00:20]} 23. Qh5 {[%clk 0:00:15]}  f6 {[%clk 0:00:13]} 24. Qf3 {[%clk 0:00:10]}  c6 {[%clk 0:00:10]} 25. Qe3 {[%clk 0:00:10]}  Qxe3 {[%clk 0:00:09]} 26. Rxe3 {[%clk 0:00:09]}  Bb1 {[%clk 0:00:09]} 27. Re1 {[%clk 0:00:08]}  Ba2 {[%clk 0:00:08]} 28. b4 {[%clk 0:00:08]}  a4 {[%clk 0:00:09]} 29. Nf5 {[%clk 0:00:05]}  Rg4 {[%clk 0:00:08]} 30. c5 {[%clk 0:00:04]}  Rc4 {[%clk 0:00:07]} 31. Rxc4 {[%clk 0:00:03]}  Bxc4 {[%clk 0:00:07]} 32. Nd6 {[%clk 0:00:04]}  Bb5 {[%clk 0:00:06]} 33. Nxb7 {[%clk 0:00:04]}  Rd3 {[%clk 0:00:06]} 34. Nd6 {[%clk 0:00:04]}  Rxa3 {[%clk 0:00:06]} 35. Rc1 {[%clk 0:00:04]}  Bd3 {[%clk 0:00:04]} 36. h3 {[%clk 0:00:03]}  Kf8 {[%clk 0:00:03]} 37. b5 {[%clk 0:00:03]}  Bxb5 {[%clk 0:00:02]} 38. Nxb5 {[%clk 0:00:04]}  cxb5 {[%clk 0:00:00]} 39. c6 {[%clk 0:00:03]} 1-0


[Site "https://www.chess.com"]

[Event "Titled Tuesday Blitz May 9 Early 2023"]
[White "Jaskolka, Tomasz"]
[Black "Yonal, Timur"]
[WhiteFideId "1170791"]
[BlackFideId "44115725"]
[WhiteElo "2155"]
[BlackElo "1966"]
[Result "1-0"]
[Round "05"]
[TimeControl "180+2"]
[Date "2023.05.09"]
[WhiteClock "0:00:17"]
[BlackClock "0:00:00"]

1. d4 {[%clk 0:02:55]}  d5 {[%clk 0:02:55]} 2. Nc3 {[%clk 0:02:52]}  Nf6 {[%clk 0:02:55]} 3. Bf4 {[%clk 0:02:52]}  c6 {[%clk 0:02:48]} 4. e3 {[%clk 0:02:53]}  Bg4 {[%clk 0:02:33]} 5. f3 {[%clk 0:02:52]}  Bh5 {[%clk 0:02:31]} 6. g4 {[%clk 0:02:52]}  Bg6 {[%clk 0:02:30]} 7. h4 {[%clk 0:02:52]}  h6 {[%clk 0:02:14]} 8. Bd3 {[%clk 0:02:46]}  Bxd3 {[%clk 0:02:04]} 9. Qxd3 {[%clk 0:02:46]}  e6 {[%clk 0:02:04]} 10. Nge2 {[%clk 0:02:45]}  Bd6 {[%clk 0:02:04]} 11. O-O-O {[%clk 0:02:45]}  b5 {[%clk 0:02:02]} 12. Ng3 {[%clk 0:02:21]}  Qc7 {[%clk 0:01:58]} 13. Bxd6 {[%clk 0:02:17]}  Qxd6 {[%clk 0:01:59]} 14. Rdg1 {[%clk 0:02:16]}  Nbd7 {[%clk 0:01:52]} 15. e4 {[%clk 0:02:05]}  e5 {[%clk 0:01:39]} 16. Nf5 {[%clk 0:02:00]}  Qc7 {[%clk 0:00:55]} 17. exd5 {[%clk 0:01:40]}  b4 {[%clk 0:00:42]} 18. dxc6 {[%clk 0:01:00]}  Qxc6 {[%clk 0:00:40]} 19. d5 {[%clk 0:00:54]}  Nc5 {[%clk 0:00:15]} 20. Qe3 {[%clk 0:00:47]}  Qb6 {[%clk 0:00:09]} 21. Nb5 {[%clk 0:00:20]}  Qxb5 {[%clk 0:00:07]} 22. Nd6+ {[%clk 0:00:19]}  Kd7 {[%clk 0:00:06]} 23. Nxb5 {[%clk 0:00:20]}  Rac8 {[%clk 0:00:07]} 24. Qxe5 {[%clk 0:00:19]}  Rhe8 {[%clk 0:00:05]} 25. Qf5+ {[%clk 0:00:18]}  Kd8 {[%clk 0:00:03]} 26. Nd6 {[%clk 0:00:18]}  Re5 {[%clk 0:00:00]} 27. Qxc8+ {[%clk 0:00:17]} 1-0


[Site "https://www.chess.com"]

[Event "Titled Tuesday Blitz May 9 Early 2023"]
[White "Winkels, Marcel"]
[Black "Perera Alfonso, Rene Humberto"]
[WhiteFideId "1003887"]
[BlackFideId "3514722"]
[WhiteElo "1900"]
[BlackElo "2313"]
[Result "1/2-1/2"]
[Round "05"]
[TimeControl "180+2"]
[Date "2023.05.09"]
[WhiteClock "0:00:37"]
[BlackClock "0:01:47"]

1. d4 {[%clk 0:03:00]}  d5 {[%clk 0:02:59]} 2. Nc3 {[%clk 0:03:01]}  Nf6 {[%clk 0:02:58]} 3. Bf4 {[%clk 0:03:01]}  e6 {[%clk 0:02:58]} 4. Nb5 {[%clk 0:02:59]}  Na6 {[%clk 0:02:56]} 5. e3 {[%clk 0:03:00]}  Be7 {[%clk 0:02:56]} 6. Nf3 {[%clk 0:02:58]}  O-O {[%clk 0:02:56]} 7. Be2 {[%clk 0:02:57]}  c6 {[%clk 0:02:56]} 8. Nc3 {[%clk 0:02:56]}  Nb8 {[%clk 0:02:55]} 9. O-O {[%clk 0:02:55]}  Nbd7 {[%clk 0:02:56]} 10. Ne5 {[%clk 0:02:55]}  Nxe5 {[%clk 0:02:55]} 11. Bxe5 {[%clk 0:02:55]}  Bd6 {[%clk 0:02:53]} 12. Bxd6 {[%clk 0:02:41]}  Qxd6 {[%clk 0:02:54]} 13. Bd3 {[%clk 0:02:41]}  e5 {[%clk 0:02:54]} 14. dxe5 {[%clk 0:02:38]}  Qxe5 {[%clk 0:02:55]} 15. Qf3 {[%clk 0:02:36]}  Bg4 {[%clk 0:02:51]} 16. Qg3 {[%clk 0:02:35]}  Qxg3 {[%clk 0:02:50]} 17. hxg3 {[%clk 0:02:34]}  Rfe8 {[%clk 0:02:51]} 18. Rfe1 {[%clk 0:02:32]}  Rad8 {[%clk 0:02:50]} 19. f3 {[%clk 0:02:17]}  Bc8 {[%clk 0:02:48]} 20. e4 {[%clk 0:02:17]}  dxe4 {[%clk 0:02:47]} 21. Nxe4 {[%clk 0:02:16]}  Nxe4 {[%clk 0:02:47]} 22. Bxe4 {[%clk 0:02:12]}  Kf8 {[%clk 0:02:47]} 23. Rad1 {[%clk 0:02:05]}  g6 {[%clk 0:02:43]} 24. g4 {[%clk 0:02:02]}  Be6 {[%clk 0:02:42]} 25. b3 {[%clk 0:01:55]}  Ke7 {[%clk 0:02:41]} 26. Kf2 {[%clk 0:01:50]}  a5 {[%clk 0:02:33]} 27. a3 {[%clk 0:01:48]}  Kf6 {[%clk 0:02:28]} 28. Rxd8 {[%clk 0:01:41]}  Rxd8 {[%clk 0:02:29]} 29. Ke2 {[%clk 0:01:40]}  Kg5 {[%clk 0:02:25]} 30. Rd1 {[%clk 0:01:39]}  Re8 {[%clk 0:02:24]} 31. Kf2 {[%clk 0:01:37]}  Bxg4 {[%clk 0:02:20]} 32. Bxc6 {[%clk 0:01:21]}  bxc6 {[%clk 0:02:20]} 33. fxg4 {[%clk 0:01:20]}  Kxg4 {[%clk 0:02:17]} 34. Rd4+ {[%clk 0:01:19]}  Kf5 {[%clk 0:02:15]} 35. Ra4 {[%clk 0:01:18]}  Re5 {[%clk 0:02:14]} 36. Rc4 {[%clk 0:01:15]}  c5 {[%clk 0:02:08]} 37. Ra4 {[%clk 0:01:14]}  g5 {[%clk 0:02:04]} 38. Rxa5 {[%clk 0:01:13]}  Ke4 {[%clk 0:02:04]} 39. b4 {[%clk 0:01:04]}  cxb4 {[%clk 0:01:57]} 40. Rxe5+ {[%clk 0:01:03]}  Kxe5 {[%clk 0:01:58]} 41. axb4 {[%clk 0:01:03]}  Kd4 {[%clk 0:01:59]} 42. b5 {[%clk 0:01:01]}  Kc5 {[%clk 0:02:00]} 43. c4 {[%clk 0:01:00]}  f5 {[%clk 0:02:00]} 44. Kf3 {[%clk 0:00:59]}  h5 {[%clk 0:02:00]} 45. Kg3 {[%clk 0:00:59]}  h4+ {[%clk 0:01:59]} 46. Kf3 {[%clk 0:00:59]}  g4+ {[%clk 0:01:58]} 47. Kf2 {[%clk 0:00:58]}  f4 {[%clk 0:01:57]} 48. Kf1 {[%clk 0:00:52]}  Kb6 {[%clk 0:01:45]} 49. Kf2 {[%clk 0:00:49]}  Ka5 {[%clk 0:01:45]} 50. Kf1 {[%clk 0:00:48]}  h3 {[%clk 0:01:45]} 51. gxh3 {[%clk 0:00:47]}  gxh3 {[%clk 0:01:46]} 52. Kf2 {[%clk 0:00:48]}  Kb6 {[%clk 0:01:46]} 53. Kf3 {[%clk 0:00:47]}  Kc5 {[%clk 0:01:47]} 54. Kf2 {[%clk 0:00:47]}  Kd6 {[%clk 0:01:45]} 55. b6 {[%clk 0:00:38]}  Kc6 {[%clk 0:01:46]} 56. c5 {[%clk 0:00:38]}  Kb7 {[%clk 0:01:46]} 57. Kf3 {[%clk 0:00:37]}  Kc6 {[%clk 0:01:47]} 58. Kf2 {[%clk 0:00:37]}  Kb7 {[%clk 0:01:46]} 59. Kf3 {[%clk 0:00:37]}  Kc6 {[%clk 0:01:47]} 60. Kf2 {[%clk 0:00:37]} 1/2-1/2


[Site "https://www.chess.com"]

[Event "Titled Tuesday Blitz May 9 Early 2023"]
[White "Van Baar, Esper"]
[Black "Degenbaev, Aziz"]
[WhiteFideId "1049321"]
[BlackFideId "13802640"]
[WhiteElo "2173"]
[BlackElo "2152"]
[Result "0-1"]
[Round "05"]
[TimeControl "180+2"]
[Date "2023.05.09"]
[WhiteClock "0:00:00"]
[BlackClock "0:01:39"]

1. e4 {[%clk 0:02:58]}  c5 {[%clk 0:02:59]} 2. Nf3 {[%clk 0:02:58]}  d6 {[%clk 0:03:00]} 3. Bb5+ {[%clk 0:02:56]}  Nd7 {[%clk 0:02:59]} 4. a4 {[%clk 0:02:54]}  Nf6 {[%clk 0:02:53]} 5. Nc3 {[%clk 0:02:54]}  e6 {[%clk 0:02:53]} 6. O-O {[%clk 0:02:53]}  Be7 {[%clk 0:02:53]} 7. a5 {[%clk 0:02:51]}  O-O {[%clk 0:02:49]} 8. Re1 {[%clk 0:02:46]}  Ne5 {[%clk 0:02:43]} 9. Nxe5 {[%clk 0:02:45]}  dxe5 {[%clk 0:02:43]} 10. d3 {[%clk 0:02:35]}  Nd7 {[%clk 0:02:27]} 11. a6 {[%clk 0:02:05]}  Nb8 {[%clk 0:02:20]} 12. axb7 {[%clk 0:02:02]}  Bxb7 {[%clk 0:02:20]} 13. Be3 {[%clk 0:01:50]}  Nc6 {[%clk 0:02:18]} 14. Ba6 {[%clk 0:01:29]}  Rb8 {[%clk 0:02:06]} 15. Bxb7 {[%clk 0:01:17]}  Rxb7 {[%clk 0:02:06]} 16. Na4 {[%clk 0:00:53]}  Nd4 {[%clk 0:02:04]} 17. c3 {[%clk 0:00:44]}  Nb3 {[%clk 0:02:04]} 18. Ra3 {[%clk 0:00:44]}  c4 {[%clk 0:02:05]} 19. Rxb3 {[%clk 0:00:22]}  cxb3 {[%clk 0:01:55]} 20. c4 {[%clk 0:00:11]}  Qa5 {[%clk 0:01:45]} 21. Nc3 {[%clk 0:00:11]}  Rd8 {[%clk 0:01:43]} 22. Qh5 {[%clk 0:00:00]}  Bb4 {[%clk 0:01:39]} 0-1


[Site "https://www.chess.com"]

[Event "Titled Tuesday Blitz May 9 Early 2023"]
[White "Sadykov, Ramil"]
[Black "Hadzimanolis, Antonios"]
[WhiteFideId "24113590"]
[BlackFideId "4202813"]
[WhiteElo "2245"]
[BlackElo "2242"]
[Result "1-0"]
[Round "05"]
[TimeControl "180+2"]
[Date "2023.05.09"]
[WhiteClock "0:00:04"]
[BlackClock "0:00:00"]

1. Nf3 {[%clk 0:03:00]}  Nf6 {[%clk 0:02:59]} 2. c4 {[%clk 0:02:58]}  e6 {[%clk 0:02:59]} 3. g3 {[%clk 0:02:57]}  d5 {[%clk 0:02:59]} 4. Bg2 {[%clk 0:02:58]}  dxc4 {[%clk 0:02:55]} 5. Qa4+ {[%clk 0:02:43]}  Bd7 {[%clk 0:02:49]} 6. Qxc4 {[%clk 0:02:43]}  c5 {[%clk 0:02:43]} 7. d4 {[%clk 0:02:42]}  b5 {[%clk 0:02:24]} 8. Qc2 {[%clk 0:02:38]}  Bc6 {[%clk 0:02:16]} 9. dxc5 {[%clk 0:02:35]}  Nbd7 {[%clk 0:02:00]} 10. O-O {[%clk 0:02:06]}  Be4 {[%clk 0:01:42]} 11. Qb3 {[%clk 0:02:03]}  Rb8 {[%clk 0:01:27]} 12. Rd1 {[%clk 0:01:42]}  Bxc5 {[%clk 0:01:23]} 13. Nc3 {[%clk 0:01:37]}  Bc6 {[%clk 0:01:20]} 14. Bf4 {[%clk 0:01:27]}  Rb6 {[%clk 0:01:12]} 15. Ne5 {[%clk 0:00:53]}  Bxg2 {[%clk 0:01:05]} 16. Kxg2 {[%clk 0:00:53]}  O-O {[%clk 0:00:58]} 17. Ne4 {[%clk 0:00:41]}  Qa8 {[%clk 0:00:33]} 18. Nxd7 {[%clk 0:00:21]}  Qxe4+ {[%clk 0:00:31]} 19. Qf3 {[%clk 0:00:21]}  Qxf3+ {[%clk 0:00:27]} 20. Kxf3 {[%clk 0:00:22]}  Nxd7 {[%clk 0:00:27]} 21. Rxd7 {[%clk 0:00:23]}  f6 {[%clk 0:00:22]} 22. Rc1 {[%clk 0:00:21]}  Rc6 {[%clk 0:00:13]} 23. b4 {[%clk 0:00:19]}  e5 {[%clk 0:00:10]} 24. Be3 {[%clk 0:00:11]}  Rd6 {[%clk 0:00:10]} 25. Rxd6 {[%clk 0:00:02]}  Bxd6 {[%clk 0:00:11]} 26. a3 {[%clk 0:00:02]}  Rf7 {[%clk 0:00:09]} 27. Rc8+ {[%clk 0:00:01]}  Bf8 {[%clk 0:00:04]} 28. Ke4 {[%clk 0:00:01]}  g6 {[%clk 0:00:04]} 29. Bc5 {[%clk 0:00:02]}  Kg7 {[%clk 0:00:04]} 30. Bxf8+ {[%clk 0:00:02]}  Rxf8 {[%clk 0:00:05]} 31. Rxf8 {[%clk 0:00:02]}  Kxf8 {[%clk 0:00:04]} 32. Kd5 {[%clk 0:00:03]}  Ke7 {[%clk 0:00:04]} 33. Kc6 {[%clk 0:00:04]}  f5 {[%clk 0:00:03]} 34. Kxb5 {[%clk 0:00:03]}  e4 {[%clk 0:00:03]} 35. Kc5 {[%clk 0:00:02]}  Ke6 {[%clk 0:00:03]} 36. Kd4 {[%clk 0:00:03]}  Kd6 {[%clk 0:00:03]} 37. h4 {[%clk 0:00:03]}  h6 {[%clk 0:00:03]} 38. a4 {[%clk 0:00:03]}  g5 {[%clk 0:00:03]} 39. hxg5 {[%clk 0:00:04]}  hxg5 {[%clk 0:00:04]} 40. f3 {[%clk 0:00:04]}  f4 {[%clk 0:00:03]} 41. gxf4 {[%clk 0:00:03]}  exf3 {[%clk 0:00:03]} 42. exf3 {[%clk 0:00:04]}  gxf4 {[%clk 0:00:00]} 43. Ke4 {[%clk 0:00:04]} 1-0


[Site "https://www.chess.com"]